Workbook

Sheet Clas Général
A1: CLASSEMENT GENERAL
F3: COUPE DES LACS 2017
D5: Les Collectors
A6: Rg | B6: N° Pl | C6: Nom/ Prénom | D6: Club | E6: Année | F6: Montmelian | G6: Pont Eveque | H6: Echichens | I6: Cran Gevrier | J6: Grenoble | K6: Genève | L6: Total
A7: 1 | B7: 67B | C7: Bordenave Jean Michel | D7: Pont Eveque | E7: 1972 | F7: 96 | G7: 89 | H7: 96 | I7: 93 | J7: 91 | K7: 87 | L7: =SUM(F7:K7) -> 552
A8: 2 | B8: 36B | C8: Buthion David | D8: Pont Eveque | E8: 1974 | F8: 85 | G8: 85 | H8: 87 | I8: 87 | J8: 83 | K8: 80 | L8: 507
A9: 3 | B9: 86T | C9: Tokarzewski Ludovic | D9: Montmelian | E9: 1977 | F9: 81 | G9: 83 | H9: 80 | I9: 91 | J9: 89 | K9: 81 | L9: 505
A10: 4 | B10: 75C | C10: Compain Stéphane | D10: Voreppe | E10: 1967 | F10: 83 | G10: 74 | H10: 85 | I10: 79 | J10: 87 | K10: 79 | L10: 487
A11: 5 | B11: 31K | C11: Kompaore Laurent | D11: Cran Gevrier | E11: 1971 | F11: 0 | G11: 91 | H11: 100 | I11: 100 | J11: 96 | K11: 91 | L11: 478
A12: 6 | B12: 86A | C12: Althuser Olivier | D12: Voreppe | E12: 1977 | F12: 75 | G12: 73 | H12: 81 | I12: 81 | J12: 79 | K12: 76 | L12: 465
A13: 7 | B13: 14R | C13: Rollet Nicolas | D13: Cran Gevrier | E13: 1977 | F13: 87 | G13: 79 | H13: 91 | I13: 89 | J13: 80 | K13: 3 | L13: 429
A14: 8 | B14: 11M | C14: Mejecaze Olivier | D14: Cran Gevrier | E14: 1970 | F14: 0 | G14: 71 | H14: 79 | I14: 80 | J14: 78 | K14: 75 | L14: 383
A15: 9 | B15: 72P | C15: Paing Gérald | D15: Voreppe | E15: 1974 | F15: 89 | G15: 81 | H15: 0 | I15: 0 | J15: 85 | K15: 85 | L15: 340
A16: 10 | B16: 94D | C16: Devun Serge | D16: Meyzieu | E16: 1975 | F16: 0 | G16: 80 | H16: 0 | I16: 85 | J16: 81 | K16: 77 | L16: 323
A17: 11 | B17: 05N | C17: Nemos Laurent | D17: Pont Eveque | E17: 1972 | F17: 77 | G17: 0 | H17: 77 | I17: 0 | J17: 77 | K17: 74 | L17: 305
A18: 12 | B18: 36C | C18: Convers Eric | D18: Pont Eveque | E18: 1969 | F18: 76 | G18: 72 | H18: 78 | I18: 78 | J18: 0 | K18: 0 | L18: 304
A19: 13 | B19: 61C | C19: Comte Cédric | D19: Grenoble | E19: 1974 | F19: 93 | G19: 93 | H19: 0 | I19: 0 | J19: 100 | K19: 0 | L19: 286
A20: 14 | B20: 34F | C20: Fontaine Jérôme | D20: Cran Gevrier | E20: 1974 | F20: 91 | G20: 0 | H20: 0 | I20: 96 | J20: 0 | K20: 89 | L20: 276
A21: 15 | B21: 13 | C21: Estienne Cyril | D21: Genève | E21: SUI1972 | F21: 80 | G21: 87 | H21: 89 | I21: 0 | J21: 0 | K21: 0 | L21: 256
A22: 16 | B22: 83G | C22: Guionnet Franck | D22: Briançon | E22: 1968 | F22: 0 | G22: 78 | H22: 83 | I22: 0 | J22: 0 | K22: 78 | L22: 239
A23: 17 | B23: 39M | C23: Mollier Jérôme | D23: Rumilly | E23: 1976 | F23: 100 | G23: 100 | H23: 0 | I23: 0 | J23: 0 | K23: 0 | L23: 200
A24: 18 | B24: 01B | C24: Berchoux Julien | D24: Beynost | E24: 1978 | F24: 0 | G24: 0 | H24: 0 | I24: 0 | J24: 93 | K24: 93 | L24: 186
A25: 19 | B25: 27R | C25: Raymond Sébastien | D25: Vallée du Gier | E25: 1976 | F25: 0 | G25: 0 | H25: 93 | I25: 0 | J25: 0 | K25: 83 | L25: 176
A26: 20 | B26: 26M | C26: Mannini Christine | D26: Cavaillon | E26: 1964 | F26: 0 | G26: 69 | H26: 0 | I26: 0 | J26: 93 | K26: 0 | L26: 162
A27: 21 | B27: 6 | C27: Imbert Olivier | D27: Colmar | E27: 1971 | F27: 0 | G27: 0 | H27: 0 | I27: 0 | J27: 0 | K27: 100 | L27: 100
A28: 22 | B28: 36B | C28: Boul Christophe | D28: Pont Eveque | E28: 1967 | F28: 0 | G28: 96 | H28: 0 | I28: 0 | J28: 0 | K28: 0 | L28: 96
A29: 23 | B29: 32F | C29: Fouillet Célyne | D29: Voreppe | E29: 1978 | F29: 0 | G29: 0 | H29: 0 | I29: 0 | J29: 96 | K29: 0 | L29: 96
A30: 24 | B30: 05L | C30: Laporte Dominique | D30: Vitrolle | E30: 1972 | F30: 0 | G30: 0 | H30: 0 | I30: 0 | J30: 0 | K30: 96 | L30: 96
A31: 25 | B31: 67G | C31: Gillardo Thuy Carine | D31: Voreppe | E31: 1983 | F31: 0 | G31: 0 | H31: 0 | I31: 0 | J31: 91 | K31: 0 | L31: 91
A32: 26 | B32: 71A | C32: Althuser Christine | D32: Voreppe | E32: 1980 | F32: 0 | G32: 0 | H32: 0 | I32: 0 | J32: 89 | K32: 0 | L32: 89
A33: 27 | B33: 30D | C33: Duprat Laurent | D33: Beynost | E33: 1970 | F33: 0 | G33: 0 | H33: 0 | I33: 83 | J33: 0 | K33: 0 | L33: 83
A34: 29 | B34: 05P | C34: Peyre Christophe | D34: Montmelian | E34: 1978 | F34: 79 | G34: 0 | H34: 0 | I34: 0 | J34: 0 | K34: 0 | L34: 79
A35: 30 | B35: 60B | C35: Boutte Sébastien | D35: Voreppe | E35: 1978 | F35: 78 | G35: 0 | H35: 0 | I35: 0 | J35: 0 | K35: 0 | L35: 78
A36: 31 | B36: 39M | C36: Maudrin Claude | D36: Beynost | E36: 1972 | F36: 0 | G36: 77 | H36: 0 | I36: 0 | J36: 0 | K36: 0 | L36: 77
A37: 32 | B37: 23 | C37: Pouessel Eric | D37: Genève | E37: 1978 | F37: 0 | G37: 0 | H37: 0 | I37: 77 | J37: 0 | K37: 0 | L37: 77
A38: 33 | B38: 41B | C38: Bouvier Sylvain | D38: Livron | E38: 1977 | F38: 0 | G38: 76 | H38: 0 | I38: 0 | J38: 0 | K38: 0 | L38: 76
A39: 34 | B39: 83M | C39: Margotton Vincent | D39: TPMC - Roanne | E39: 1973 | F39: 0 | G39: 75 | H39: 0 | I39: 0 | J39: 0 | K39: 0 | L39: 75
A40: 35 | B40: 37C | C40: Chal Carine | D40: Meyzieu | E40: 1976F | F40: 0 | G40: 0 | H40: 0 | I40: 0 | J40: 0 | K40: 73 | L40: 73
A41: 36 | B41: 76L | C41: Lentillon David | D41: Pont Eveque | E41: 1976 | F41: 0 | G41: 70 | H41: 0 | I41: 0 | J41: 0 | K41: 0 | L41: 70
D43: Séniors
A44: Rg | B44: N° Pl | C44: Nom/ Prénom | D44: Club | E44: Année | F44: Montmelian | G44: Pont Eveque | H44: Echichens | I44: Cran Gevrier | J44: Grenoble | K44: Genève | L44: Total
A45: 1 | B45: 98D | C45: Doremus Tim | D45: Cran Gevrier | E45: 1979 | F45: 96 | G45: 96 | H45: 100 | I45: 96 | J45: 100 | K45: 89 | L45: =SUM(F45:K45) -> 577
A46: 2 | B46: 23 | C46: Rigo Marcelo | D46: Genève | E46: 1981 | F46: 93 | G46: 91 | H46: 93 | I46: 91 | J46: 96 | K46: 93 | L46: 557
A47: 3 | B47: 13 | C47: Santschy Joel | D47: Genève | E47: 1983 | F47: 83 | G47: 76 | H47: 87 | I47: 89 | J47: 87 | K47: 79 | L47: 501
A48: 4 | B48: 85M | C48: Morin Gael | D48: Pont Eveque | E48: 1979 | F48: 81 | G48: 79 | H48: 89 | I48: 81 | J48: 81 | K48: 81 | L48: 492
A49: 5 | B49: 43H | C49: Hilarion Mathieu | D49: Montmelian | E49: 1979 | F49: 80 | G49: 75 | H49: 85 | I49: 83 | J49: 85 | K49: 83 | L49: 491
A50: 6 | B50: 02C | C50: Coty Emmanuel | D50: Pont Eveque | E50: 1992 | F50: 91 | G50: 89 | H50: 91 | I50: 0 | J50: 91 | K50: 87 | L50: 449
A51: 7 | B51: 93S | C51: Soria Alice | D51: Pont Eveque | E51: 1985F | F51: 78 | G51: 74 | H51: 0 | I51: 79 | J51: 100 | K51: 77 | L51: 408
A52: 8 | B52: 57M | C52: Mogenot Nicolas | D52: Pont Eveque | E52: 1979 | F52: 100 | G52: 100 | H52: 0 | I52: 100 | J52: 0 | K52: 96 | L52: 396
A53: 9 | B53: 98P | C53: Planchon Olivier | D53: Livron | E53: 1987 | F53: 93 | G53: 0 | H53: 96 | I53: 93 | J53: 83 | K53: 0 | L53: 365
A54: 10 | B54: 08R | C54: Roux Yoann | D54: Voreppe | E54: 1980 | F54: 85 | G54: 77 | H54: 0 | I54: 87 | J54: 89 | K54: 3 | L54: 341
A55: 11 | B55: 14L | C55: Le Flohic Yann | D55: Pont Eveque | E55: 1985 | F55: 87 | G55: 78 | H55: 83 | I55: 0 | J55: 0 | K55: 80 | L55: 328
A56: 12 | B56: 31M | C56: Michel Guillaume | D56: Pont Eveque | E56: 1981 | F56: 89 | G56: 80 | H56: 0 | I56: 0 | J56: 0 | K56: 85 | L56: 254
A57: 13 | B57: 27D | C57: De Waele Romain | D57: Montmelian | E57: 1983 | F57: 0 | G57: 81 | H57: 0 | I57: 0 | J57: 93 | K57: 0 | L57: 174
A58: 14 | B58: 58L | C58: Lhuerre Steve | D58: Cran Gevrier | E58: 1988 | F58: 79 | G58: 0 | H58: 0 | I58: 0 | J58: 0 | K58: 78 | L58: 157
A59: 15 | B59: 122 | C59: Laurent Antoine | D59: Genève | E59: 1989 | F59: 0 | G59: 0 | H59: 0 | I59: 0 | J59: 0 | K59: 100 | L59: 100
A60: 16 | B60: 48D | C60: De Cesare Maxime | D60: Beynost | E60: 1984 | F60: 0 | G60: 0 | H60: 0 | I60: 0 | J60: 0 | K60: 91 | L60: 91
A61: 17 | B61: 72B | C61: Bardin Nicolas | D61: Pont Eveque | E61: 1981 | F61: 0 | G61: 87 | H61: 0 | I61: 0 | J61: 0 | K61: 0 | L61: 87
A62: 18 | B62: 85C | C62: Cadet Raphael | D62: Pont Eveque | E62: 1986 | F62: 0 | G62: 85 | H62: 0 | I62: 0 | J62: 0 | K62: 0 | L62: 85
A63: 19 | B63: 22P | C63: Poupon Emeric | D63: Voreppe | E63: 1995 | F63: 0 | G63: 0 | H63: 0 | I63: 85 | J63: 0 | K63: 0 | L63: 85
A64: 22 | B64: 76R | C64: Roux Vincent | D64: Pont Eveque | E64: 1979 | F64: 0 | G64: 83 | H64: 0 | I64: 0 | J64: 0 | K64: 0 | L64: 83
A65: 23 | B65: 27C | C65: Convers Adrien | D65: Pont Eveque | E65: 1989 | F65: 0 | G65: 0 | H65: 0 | I65: 80 | J65: 0 | K65: 0 | L65: 80
D67: Piccolos
A68: Rg | B68: N° Pl | C68: Nom/ Prénom | D68: Club | E68: Année | F68: Montmelian | G68: Pont Eveque | H68: Echichens | I68: Cran Gevrier | J68: Grenoble | K68: Genève | L68: Total
A69: 1 | B69: 50M | C69: Melissano Alise | D69: Geneve | E69: 2010F | F69: 96 | G69: 96 | H69: 100 | I69: 100 | J69: 100 | K69: 100 | L69: =SUM(F69:K69) -> 592
A70: 2 | B70: 58D | C70: Dubois Mathis | D70: Montmelian | E70: 2011 | F70: 93 | G70: 91 | H70: 96 | I70: 93 | J70: 96 | K70: 96 | L70: 565
A71: 3 | B71: 73F | C71: Fournier Valentin | D71: Montmelian | E71: 2012 | F71: 81 | G71: 81 | H71: 91 | I71: 91 | J71: 83 | K71: 78 | L71: 505
A72: 4 | B72: 45G | C72: Guerraz Alicia | D72: Cran Gevrier | E72: 2010F | F72: 79 | G72: 83 | H72: 81 | I72: 89 | J72: 87 | K72: 81 | L72: 500
A73: 5 | B73: 70C | C73: Charmet Timo | D73: Montmelian | E73: 2012 | F73: 80 | G73: 78 | H73: 80 | I73: 87 | J73: 72 | K73: 73 | L73: 470
A74: 6 | B74: 71D | C74: Duval Samuel | D74: Cran Gevrier | E74: 2011 | F74: 0 | G74: 85 | H74: 89 | I74: 83 | J74: 91 | K74: 89 | L74: 437
A75: 7 | B75: 49C | C75: Compain Ema | D75: Voreppe | E75: 2010F | F75: 75 | G75: 67 | H75: 75 | I75: 74 | J75: 71 | K75: 70 | L75: 432
A76: 8 | B76: 10 | C76: Rollet Eliot | D76: Geneve | E76: SUI2012 | F76: 76 | G76: 69 | H76: 77 | I76: 75 | J76: 68 | K76: 66 | L76: 431
A77: 9 | B77: 06L | C77: Lauze Tristan | D77: Pont Eveque | E77: 2011 | F77: 83 | G77: 87 | H77: 0 | I77: 81 | J77: 89 | K77: 83 | L77: 423
A78: 10 | B78: 37W | C78: Won Fah Hin Eliott | D78: Meyzieu | E78: 2012 | F78: 0 | G78: 77 | H78: 85 | I78: 80 | J78: 79 | K78: 79 | L78: 400
A79: 11 | B79: 70R | C79: Raffa Sacha | D79: Montmelian | E79: 2012 | F79: 85 | G79: 68 | H79: 0 | I79: 79 | J79: 70 | K79: 72 | L79: 374
A80: 12 | B80: 55N | C80: Nayener Axel | D80: Montmelian | E80: 2012 | F80: 91 | G80: 0 | H80: 0 | I80: 96 | J80: 93 | K80: 93 | L80: 373
A81: 13 | B81: 68S | C81: Serret Hanaé | D81: Montmelian | E81: 2012F | F81: 72 | G81: 63 | H81: 74 | I81: 76 | J81: 61 | K81: 0 | L81: 346
A82: 14 | B82: 60L | C82: Lheureux Hugo | D82: Cran Gevrier | E82: 2011 | F82: 0 | G82: 0 | H82: 87 | I82: 85 | J82: 85 | K82: 85 | L82: 342
A83: 15 | B83: 04G | C83: Giacone Lucas | D83: Voreppe | E83: 2011 | F83: 0 | G83: 0 | H83: 83 | I83: 73 | J83: 80 | K83: 80 | L83: 316
A84: 16 | B84: 04T | C84: Thevenin Baptiste | D84: Montmelian | E84: 2013 | F84: 78 | G84: 74 | H84: 0 | I84: 68 | J84: 64 | K84: 0 | L84: 284
A85: 17 | B85: 05S | C85: Sbardella Justin | D85: Beynost | E85: 2011 | F85: 0 | G85: 65 | H85: 0 | I85: 67 | J85: 74 | K85: 67 | L85: 273
A86: 18 | B86: 19C | C86: Chaudun Novak | D86: St Etienne | E86: 2011 | F86: 0 | G86: 93 | H86: 0 | I86: 0 | J86: 81 | K86: 87 | L86: 261
A87: 19 | B87: 16L | C87: Lopez Arsene | D87: Voreppe | E87: 2011 | F87: 0 | G87: 76 | H87: 0 | I87: 0 | J87: 78 | K87: 77 | L87: 231
A88: 20 | B88: 83C | C88: Chelmis Noémie | D88: Beynost | E88: 2011F | F88: 0 | G88: 0 | H88: 0 | I88: 78 | J88: 76 | K88: 75 | L88: 229
A89: 21 | B89: 40 | C89: Kehrli Livia | D89: Echichens | E89: 2012 | F89: 0 | G89: 0 | H89: 76 | I89: 77 | J89: 0 | K89: 71 | L89: 224
A90: 22 | B90: 56C | C90: Camion-Flament Oscar | D90: Cran Gevrier | E90: 2012 | F90: 74 | G90: 0 | H90: 0 | I90: 69 | J90: 0 | K90: 64 | L90: 207
A91: 23 | B91: 37 | C91: Kohler Nathanier | D91: Winterthur | E91: 2011 | F91: 100 | G91: 100 | H91: 0 | I91: 0 | J91: 0 | K91: 0 | L91: 200
A92: 24 | B92: 57D | C92: De Waele Luka | D92: Montmelian | E92: 2011 | F92: 68 | G92: 61 | H92: 0 | I92: 0 | J92: 67 | K92: 0 | L92: 196
A93: 25 | B93: 62R | C93: Raymond Sacha | D93: Vallée du Gier | E93: 2011 | F93: 0 | G93: 0 | H93: 93 | I93: 0 | J93: 0 | K93: 91 | L93: 184
A94: 26 | B94: 102 | C94: Deslage Gaspard | D94: Geneve | E94: Sui2011 | F94: 87 | G94: 0 | H94: 0 | I94: 0 | J94: 0 | K94: 74 | L94: 161
A95: 27 | B95: 20 | C95: Laurent William | D95: Echichens | E95: 2012 | F95: 0 | G95: 0 | H95: 79 | I95: 0 | J95: 0 | K95: 69 | L95: 148
A96: 28 | B96: 149 | C96: Pelleriti Fabio | D96: Geneve | E96: 2011 | F96: 0 | G96: 0 | H96: 0 | I96: 70 | J96: 0 | K96: 76 | L96: 146
A97: 29 | B97: 044 | C97: Noeth Wolf | D97: volketswill | E97: 2011 | F97: 0 | G97: 0 | H97: 0 | I97: 66 | J97: 0 | K97: 65 | L97: 131
A98: 30 | B98: 18B | C98: Bousseliou Noham | D98: Voreppe | E98: 2011 | F98: 0 | G98: 64 | H98: 0 | I98: 0 | J98: 65 | K98: 0 | L98: 129
A99: 31 | B99: 21R | C99: Roucheyroux Ylan | D99: Voreppe | E99: 2012 | F99: 0 | G99: 60 | H99: 0 | I99: 0 | J99: 0 | K99: 68 | L99: 128
A100: 32 | B100: 81T | C100: Taki Mayssane | D100: Beynost | E100: 2012F | F100: 0 | G100: 0 | H100: 0 | I100: 0 | J100: 66 | K100: 62 | L100: 128
A101: 33 | B101: 28D | C101: Dehaemers Simon | D101: Cran Gevrier | E101: 2012 | F101: 0 | G101: 0 | H101: 0 | I101: 65 | J101: 62 | K101: 0 | L101: =SUM(F101:K101) -> 127
A102: 34 | B102: 20G | C102: Grimaud Chapus Robin | D102: Eragny | E102: 2011 | F102: 0 | G102: 89 | H102: 0 | I102: 0 | J102: 0 | K102: 0 | L102: 89
A103: 35 | B103: 15P | C103: Poncet Yao | D103: Montmelian | E103: 2011 | F103: 89 | G103: 0 | H103: 0 | I103: 0 | J103: 0 | K103: 0 | L103: 89
A104: 36 | B104: 98M | C104: Magne Tilio | D104: Pont Eveque | E104: 2011 | F104: 0 | G104: 80 | H104: 0 | I104: 0 | J104: 0 | K104: 0 | L104: 80
A105: 37 | B105: 97P | C105: Picard Evan | D105: Pont Eveque | E105: 2011 | F105: 0 | G105: 79 | H105: 0 | I105: 0 | J105: 0 | K105: 0 | L105: 79
A106: 38 | B106: 037 | C106: Schmid Emilie | D106: Echichens | E106: 2011F | F106: 0 | G106: 0 | H106: 78 | I106: 0 | J106: 0 | K106: 0 | L106: 78
A107: 39 | B107: 35B | C107: Basset Gael | D107: Val Bmx | E107: 2011 | F107: 0 | G107: 0 | H107: 0 | I107: 0 | J107: 77 | K107: 0 | L107: 77
A108: 40 | B108: 99B | C108: Baumont Alexandre | D108: Montmelian | E108: 2012 | F108: 77 | G108: 0 | H108: 0 | I108: 0 | J108: 0 | K108: 0 | L108: 77
A109: 41 | B109: 06F | C109: Falconnier Paul | D109: Pont Eveque | E109: 2012 | F109: 0 | G109: 75 | H109: 0 | I109: 0 | J109: 0 | K109: 0 | L109: 75
A110: 42 | B110: 66M | C110: Mazet Maxime | D110: Grenoble | E110: 2011 | F110: 0 | G110: 0 | H110: 0 | I110: 0 | J110: 75 | K110: 0 | L110: 75
A111: 43 | B111: 99D | C111: Derycke Enzo | D111: Vallée du Gier | E111: 2011 | F111: 0 | G111: 73 | H111: 0 | I111: 0 | J111: 0 | K111: 0 | L111: 73
A112: 44 | B112: 45J | C112: Jousserand Pierre | D112: St Etienne | E112: 2011 | F112: 0 | G112: 0 | H112: 0 | I112: 0 | J112: 73 | K112: 0 | L112: 73
A113: 45 | B113: 19 | C113: Lombart Benjamin | D113: Cran Gevrier | E113: 2012 | F113: 73 | G113: 0 | H113: 0 | I113: 0 | J113: 0 | K113: 0 | L113: 73
A114: 46 | B114: 52D | C114: Devos Louis | D114: Cran Gevrier | E114: 2011 | F114: 0 | G114: 0 | H114: 0 | I114: 72 | J114: 0 | K114: 0 | L114: 72
A115: 47 | B115: 26T | C115: Tribouillier Nathan | D115: Pont Eveque | E115: 2011 | F115: 0 | G115: 72 | H115: 0 | I115: 0 | J115: 0 | K115: 0 | L115: 72
A116: 48 | B116: 25 | C116: Barrier Tony | D116: Montmelian | E116: 2012 | F116: 71 | G116: 0 | H116: 0 | I116: 0 | J116: 0 | K116: 0 | L116: 71
A117: 49 | B117: 75B | C117: Beltrami Axel | D117: Cran Gevrier | E117: 2011 | F117: 0 | G117: 0 | H117: 0 | I117: 71 | J117: 0 | K117: 0 | L117: 71
A118: 50 | B118: 57B | C118: Bouvier Samuel | D118: Livron | E118: 2011 | F118: 0 | G118: 71 | H118: 0 | I118: 0 | J118: 0 | K118: 0 | L118: 71
A119: 51 | B119: 02D | C119: De Andrade Baptiste | D119: St Etienne | E119: 2011 | F119: 0 | G119: 70 | H119: 0 | I119: 0 | J119: 0 | K119: 0 | L119: 70
A120: 52 | B120: 33 | C120: Devynck Lilian | D120: Montmelian | E120: 2012 | F120: 70 | G120: 0 | H120: 0 | I120: 0 | J120: 0 | K120: 0 | L120: 70
A121: 53 | B121: 34B | C121: Basset Sonia | D121: Val Bmx | E121: 2011F | F121: 0 | G121: 0 | H121: 0 | I121: 0 | J121: 69 | K121: 0 | L121: 69
A122: 54 | B122: 66L | C122: Leborgne Mathias | D122: Montmelian | E122: 2013 | F122: 69 | G122: 0 | H122: 0 | I122: 0 | J122: 0 | K122: 0 | L122: 69
A123: 55 | B123: 10D | C123: Duran Timéo | D123: Pont Eveque | E123: 2011 | F123: 0 | G123: 66 | H123: 0 | I123: 0 | J123: 0 | K123: 0 | L123: 66
A124: 56 | B124: 62 | C124: Tepinier Arthur | D124: Damparis | E124: 2013 | F124: 0 | G124: 0 | H124: 0 | I124: 64 | J124: 0 | K124: 0 | L124: 64
A125: 57 | B125: 53F | C125: Ferrier Zion | D125: Grenoble | E125: 2011 | F125: 0 | G125: 0 | H125: 0 | I125: 0 | J125: 63 | K125: 0 | L125: 63
A126: 58 | B126: 05D | C126: Drevet Amaury | D126: Pont Eveque | E126: 2013 | F126: 0 | G126: 62 | H126: 0 | I126: 0 | J126: 0 | K126: 0 | L126: 62
A127: 59 | B127: 16J | C127: Jourhomme Mahe | D127: Pont Eveque | E127: 2012 | F127: 0 | G127: 59 | H127: 0 | I127: 0 | J127: 0 | K127: 0 | L127: 59
D129: Poussins
A130: Rg | B130: N° Pl | C130: Nom/ Prénom | D130: Club | E130: Année | F130: Montmelian | G130: Pont Eveque | H130: Echichens | I130: Cran Gevrier | J130: Grenoble | K130: Genève | L130: Total
A131: 1 | B131: 40B | C131: Bolliet Selene | D131: Montmelian | E131: 2009F | F131: 96 | G131: 100 | H131: 96 | I131: 100 | J131: 89 | K131: 89 | L131: =SUM(F131:K131) -> 570
A132: 2 | B132: 18 | C132: Guilhem Lucas | D132: Genève | E132: sui2010 | F132: 83 | G132: 93 | H132: 80 | I132: 93 | J132: 91 | K132: 87 | L132: 527
A133: 3 | B133: 46M | C133: Mejecaze Célie | D133: Cran Gevrier | E133: 2009F | F133: 89 | G133: 83 | H133: 87 | I133: 89 | J133: 87 | K133: 83 | L133: 518
A134: 4 | B134: 54T | C134: Teyssier Ilyan | D134: Voreppe | E134: 2010 | F134: 78 | G134: 91 | H134: 91 | I134: 87 | J134: 83 | K134: 79 | L134: 509
A135: 5 | B135: 94G | C135: Gillardo Gabriel | D135: Voreppe | E135: 2010 | F135: 91 | G135: 81 | H135: 79 | I135: 78 | J135: 79 | K135: 73 | L135: 481
A136: 6 | B136: 94F | C136: Fournier Antoine | D136: Montmelian | E136: 2010 | F136: 81 | G136: 80 | H136: 83 | I136: 80 | J136: 78 | K136: 78 | L136: 480
A137: 7 | B137: 24T | C137: Tournoud Hugo | D137: Montmelian | E137: 2010 | F137: 85 | G137: 78 | H137: 73 | I137: 85 | J137: 76 | K137: 65 | L137: 462
A138: 8 | B138: 71B | C138: Bonnevie Enzo | D138: Cran Gevrier | E138: 2010 | F138: 76 | G138: 87 | H138: 85 | I138: 77 | J138: 65 | K138: 71 | L138: 461
A139: 9 | B139: 96G | C139: Genaille Anton | D139: Cran Gevrier | E139: 2010 | F139: 75 | G139: 77 | H139: 76 | I139: 83 | J139: 72 | K139: 60 | L139: 443
A140: 10 | B140: 67S | C140: Spagnolo Kylian | D140: Montmelian | E140: 2010 | F140: 80 | G140: 75 | H140: 74 | I140: 76 | J140: 73 | K140: 62 | L140: 440
A141: 11 | B141: 07J | C141: Jabouille Ludovic | D141: Voreppe | E141: 2010 | F141: 67 | G141: 76 | H141: 75 | I141: 73 | J141: 77 | K141: 67 | L141: 435
A142: 12 | B142: 71D | C142: Doro Paco | D142: Montmelian | E142: 2010 | F142: 93 | G142: 0 | H142: 89 | I142: 81 | J142: 81 | K142: 81 | L142: 425
A143: 13 | B143: 99 | C143: Rollet Adam | D143: Genève | E143: SUI2010 | F143: 74 | G143: 70 | H143: 72 | I143: 70 | J143: 70 | K143: 58 | L143: 414
A144: 14 | B144: 16B | C144: Bretin Monard Nicolas | D144: Beynost | E144: 2010 | F144: 87 | G144: 96 | H144: 78 | I144: 79 | J144: 0 | K144: 72 | L144: 412
A145: 15 | B145: 43 | C145: Moret Alix | D145: Chablais | E145: 2010 | F145: 0 | G145: 0 | H145: 93 | I145: 96 | J145: 100 | K145: 80 | L145: 369
A146: 16 | B146: 84R | C146: Roux Paco | D146: Voreppe | E146: 2010 | F146: 71 | G146: 73 | H146: 0 | I146: 74 | J146: 71 | K146: 63 | L146: 352
A147: 17 | B147: 53B | C147: Besacier Fantin | D147: Voreppe | E147: 2010 | F147: 63 | G147: 67 | H147: 70 | I147: 0 | J147: 74 | K147: 61 | L147: 335
A148: 18 | B148: 74S | C148: Sbardella Oscar | D148: Beynost | E148: 2010 | F148: 0 | G148: 85 | H148: 0 | I148: 72 | J148: 85 | K148: 77 | L148: 319
A149: 19 | B149: 20T | C149: Thevenin Thibault | D149: Montmelian | E149: 2010 | F149: 79 | G149: 74 | H149: 0 | I149: 69 | J149: 0 | K149: 57 | L149: 279
A150: 20 | B150: 61R | C150: Roucheyroux Matiss | D150: Voreppe | E150: 2010 | F150: 69 | G150: 69 | H150: 0 | I150: 0 | J150: 75 | K150: 64 | L150: 277
A151: 21 | B151: 74C | C151: Chelmis Camille | D151: Beynost | E151: 2009F | F151: 0 | G151: 0 | H151: 0 | I151: 91 | J151: 96 | K151: 76 | L151: 263
A152: 22 | B152: 97D | C152: Decamp Achille | D152: Pont Eveque | E152: 2010 | F152: 58 | G152: 68 | H152: 0 | I152: 64 | J152: 69 | K152: 0 | L152: 259
A153: 23 | B153: 28S | C153: Sauser Cyril | D153: Genève | E153: SUI2010 | F153: 73 | G153: 0 | H153: 0 | I153: 75 | J153: 0 | K153: 69 | L153: 217
A154: 24 | B154: 5 | C154: Kasper Jules | D154: Zetzwil | E154: SUI2010 | F154: 0 | G154: 0 | H154: 100 | I154: 0 | J154: 0 | K154: 100 | L154: 200
A155: 25 | B155: 70R | C155: Richard Léo | D155: Voreppe | E155: 2010 | F155: 0 | G155: 66 | H155: 0 | I155: 68 | J155: 66 | K155: 0 | L155: 200
A156: 26 | B156: 59G | C156: Gautier Baptiste | D156: Voreppe | E156: 2010 | F156: 0 | G156: 65 | H156: 0 | I156: 65 | J156: 64 | K156: 0 | L156: 194
A157: 27 | B157: 02 | C157: Lange Côme | D157: Cran Gevrier | E157: 2010 | F157: 0 | G157: 0 | H157: 0 | I157: 66 | J157: 67 | K157: 59 | L157: 192
A158: 28 | B158: 86G | C158: Gaujard Eliott | D158: Beaune | E158: 2010 | F158: 100 | G158: 0 | H158: 81 | I158: 0 | J158: 0 | K158: 0 | L158: 181
A159: 29 | B159: 35 | C159: Kehrli Luca | D159: Echichens | E159: SUI2010 | F159: 0 | G159: 0 | H159: 77 | I159: 0 | J159: 0 | K159: 70 | L159: 147
A160: 30 | B160: 29R | C160: Roussey Sentis Carina | D160: Roanne | E160: 2009F | F160: 0 | G160: 0 | H160: 0 | I160: 67 | J160: 0 | K160: 66 | L160: 133
A161: 31 | B161: 27A | C161: Abbate Tilian | D161: Cran Gevrier | E161: 2010 | F161: 59 | G161: 0 | H161: 0 | I161: 63 | J161: 0 | K161: 0 | L161: 122
A162: 32 | B162: 13R | C162: Renaud Ferdinand | D162: Vallée du Gier | E162: 2010 | F162: 0 | G162: 0 | H162: 0 | I162: 0 | J162: 0 | K162: 96 | L162: 96
A163: 33 | B163: 59L | C163: Lorion Dorique Arnaud | D163: Meyzieu | E163: 2010 | F163: 0 | G163: 0 | H163: 0 | I163: 0 | J163: 93 | K163: 0 | L163: =SUM(F163:K163) -> 93
A164: 34 | B164: 53K | C164: Koos Szymczak Lowel | D164: Roanne | E164: 2010 | F164: 0 | G164: 0 | H164: 0 | I164: 0 | J164: 0 | K164: 93 | L164: 93
A165: 35 | B165: 71B | C165: Bartassot Johnna | D165: Roanne | E165: 2010 | F165: 0 | G165: 0 | H165: 0 | I165: 0 | J165: 0 | K165: 91 | L165: 91
A166: 36 | B166: 05P | C166: Perrillon Matteo | D166: St Etienne | E166: 2010 | F166: 0 | G166: 89 | H166: 0 | I166: 0 | J166: 0 | K166: 0 | L166: 89
A167: 37 | B167: 41V | C167: Vilallonga Enzo | D167: Damparis | E167: 2010 | F167: 0 | G167: 0 | H167: 0 | I167: 0 | J167: 0 | K167: 85 | L167: 85
A168: 38 | B168: 09I | C168: Imarazene Baptiste | D168: Voreppe | E168: 2010 | F168: 0 | G168: 0 | H168: 0 | I168: 0 | J168: 80 | K168: 0 | L168: 80
A169: 39 | B169: 07O | C169: Oliveira Pereira Annaelle | D169: Vallée du Gier | E169: 2009F | F169: 0 | G169: 79 | H169: 0 | I169: 0 | J169: 0 | K169: 0 | L169: 79
A170: 40 | B170: 65G | C170: Gravier Dorian | D170: Montmelian | E170: 2010 | F170: 77 | G170: 0 | H170: 0 | I170: 0 | J170: 0 | K170: 0 | L170: 77
A171: 41 | B171: 07D | C171: De La Hogue Colleen | D171: St Etienne | E171: 2009F | F171: 0 | G171: 0 | H171: 0 | I171: 0 | J171: 0 | K171: 75 | L171: 75
A172: 42 | B172: 35H | C172: Harscoet Ronan | D172: Roanne | E172: 2010 | F172: 0 | G172: 0 | H172: 0 | I172: 0 | J172: 0 | K172: 74 | L172: 74
A173: 43 | B173: 68A | C173: Alves Pereira Alexy | D173: Montmelian | E173: 2010 | F173: 72 | G173: 0 | H173: 0 | I173: 0 | J173: 0 | K173: 0 | L173: 72
A174: 44 | B174: 02R | C174: Ruffinoni Paul | D174: Pont Eveque | E174: 2010 | F174: 0 | G174: 72 | H174: 0 | I174: 0 | J174: 0 | K174: 0 | L174: 72
A175: 45 | B175: 53C | C175: Chareyron Paul | D175: Vallée du Gier | E175: 2010 | F175: 0 | G175: 71 | H175: 0 | I175: 0 | J175: 0 | K175: 0 | L175: 71
A176: 46 | B176: 89 | C176: Hüni Armel | D176: Echichens | E176: SUI2010 | F176: 0 | G176: 0 | H176: 71 | I176: 0 | J176: 0 | K176: 0 | L176: 71
A177: 47 | B177: 51R | C177: Rey-Millet Max | D177: Cran Gevrier | E177: 2010 | F177: 0 | G177: 0 | H177: 0 | I177: 71 | J177: 0 | K177: 0 | L177: 71
A178: 48 | B178: 67L | C178: Leborgne Nathan | D178: Montmelian | E178: 2010 | F178: 70 | G178: 0 | H178: 0 | I178: 0 | J178: 0 | K178: 0 | L178: 70
A179: 49 | B179: 27 | C179: Fay Alec | D179: Echichens | E179: SUI2010 | F179: 0 | G179: 0 | H179: 69 | I179: 0 | J179: 0 | K179: 0 | L179: 69
A180: 50 | B180: 14D | C180: Daviet Cassien | D180: Grenoble | E180: 2010 | F180: 0 | G180: 0 | H180: 0 | I180: 0 | J180: 68 | K180: 0 | L180: 68
A181: 51 | B181: 14M | C181: Miege Caliste | D181: Montmelian | E181: 2010 | F181: 68 | G181: 0 | H181: 0 | I181: 0 | J181: 0 | K181: 0 | L181: 68
A182: 52 | B182: 8 | C182: Burnier Léonard | D182: Genève | E182: 2010 | F182: 0 | G182: 0 | H182: 0 | I182: 0 | J182: 0 | K182: 68 | L182: 68
A183: 53 | B183: 62D | C183: Drevon Lucas | D183: Montmelian | E183: 2010 | F183: 66 | G183: 0 | H183: 0 | I183: 0 | J183: 0 | K183: 0 | L183: 66
A184: 54 | B184: 60B | C184: Bron Senna | D184: Montmelian | E184: 2010 | F184: 65 | G184: 0 | H184: 0 | I184: 0 | J184: 0 | K184: 0 | L184: 65
A185: 55 | B185: 99M | C185: Marron Nathan | D185: Pont Eveque | E185: 2010 | F185: 0 | G185: 64 | H185: 0 | I185: 0 | J185: 0 | K185: 0 | L185: 64
A186: 56 | B186: 36 | C186: Nolot Romane | D186: Montmelian | E186: 2009F | F186: 64 | G186: 0 | H186: 0 | I186: 0 | J186: 0 | K186: 0 | L186: 64
A187: 57 | B187: 51F | C187: Ferrard Louka | D187: Voreppe | E187: 2010 | F187: 0 | G187: 0 | H187: 0 | I187: 0 | J187: 63 | K187: 0 | L187: 63
A188: 58 | B188: 01R | C188: Romanetto Léo | D188: Pont Eveque | E188: 2010 | F188: 0 | G188: 63 | H188: 0 | I188: 0 | J188: 0 | K188: 0 | L188: 63
A189: 59 | B189: 38 | C189: Do Cabo Machado Tiago | D189: Montmelian | E189: 2010 | F189: 62 | G189: 0 | H189: 0 | I189: 0 | J189: 0 | K189: 0 | L189: 62
A190: 60 | B190: 56P | C190: Peyre Kelyan | D190: Cran Gevrier | E190: 2010 | F190: 61 | G190: 0 | H190: 0 | I190: 0 | J190: 0 | K190: 0 | L190: 61
A191: 61 | B191: 65J | C191: Jung Zacch | D191: Montmelian | E191: 2010 | F191: 60 | G191: 0 | H191: 0 | I191: 0 | J191: 0 | K191: 0 | L191: 60
A192: 62 | B192: 54B | C192: Billard Dean | D192: Montmelian | E192: 2010 | F192: 57 | G192: 0 | H192: 0 | I192: 0 | J192: 0 | K192: 0 | L192: 57
D194: Minis 1
A195: Rg | B195: N° Pl | C195: Nom/ Prénom | D195: Club | E195: Année | F195: Montmelian | G195: Pont Eveque | H195: Echichens | I195: Cran Gevrier | J195: Grenoble | K195: Genève | L195: Total
A196: 1 | B196: 74A | C196: Althuser Malo | D196: Voreppe | E196: 2009 | F196: 87 | G196: 83 | H196: 89 | I196: 89 | J196: 93 | K196: 81 | L196: =SUM(F196:K196) -> 522
A197: 2 | B197: 044 | C197: Noeth Merel | D197: Volketswill | E197: 2008F | F197: 89 | G197: 85 | H197: 81 | I197: 87 | J197: 91 | K197: 87 | L197: 520
A198: 3 | B198: 87J | C198: Janes Martin | D198: Cran Gevrier | E198: 2009 | F198: 79 | G198: 79 | H198: 80 | I198: 91 | J198: 89 | K198: 78 | L198: 496
A199: 4 | B199: 34P | C199: Papin Jules | D199: Cran Gevrier | E199: 2009 | F199: 78 | G199: 87 | H199: 87 | I199: 81 | J199: 87 | K199: 72 | L199: 492
A200: 5 | B200: 62T | C200: Tournoud Theo | D200: Montmelian | E200: 2009 | F200: 85 | G200: 77 | H200: 85 | I200: 83 | J200: 85 | K200: 74 | L200: 489
A201: 6 | B201: 22b | C201: Bannay Lilian | D201: Pont Eveque | E201: 2009 | F201: 80 | G201: 80 | H201: 76 | I201: 79 | J201: 83 | K201: 77 | L201: 475
A202: 7 | B202: 64T | C202: Tournoud Dany | D202: Montmelian | E202: 2009 | F202: 96 | G202: 89 | H202: 0 | I202: 93 | J202: 96 | K202: 93 | L202: 467
A203: 8 | B203: 96B | C203: Bourbonnais Eliott | D203: Cran Gevrier | E203: 2009 | F203: 70 | G203: 74 | H203: 77 | I203: 76 | J203: 79 | K203: 69 | L203: 445
A204: 9 | B204: 83F | C204: Freycenon Thibaut | D204: Voreppe | E204: 2009 | F204: 76 | G204: 67 | H204: 73 | I204: 77 | J204: 80 | K204: 71 | L204: 444
A205: 10 | B205: 82W | C205: Wilquin Ewan | D205: Montmelian | E205: 2009 | F205: 71 | G205: 65 | H205: 72 | I205: 71 | J205: 77 | K205: 65 | L205: 421
A206: 11 | B206: 62 | C206: Rigo Alessandro | D206: Genève | E206: SUI2009 | F206: 68 | G206: 68 | H206: 71 | I206: 66 | J206: 72 | K206: 67 | L206: 412
... 483 more rows

Sheet 8 premiers
A1: CLASSEMENT GENERAL
F3: COUPE DES LACS 2017
D5: Vétérans
A6: Rg | B6: N° Pl | C6: Nom/ Prénom | D6: Club | E6: Année | F6: Montmelian | G6: Pont Eveque | H6: Echichens | I6: Cran Gevrier | J6: Grenoble | K6: Genève | L6: Total
A7: 1 | B7: 67B | C7: Bordenave Jean Michel | D7: Pont Eveque | E7: 1972 | F7: 96 | G7: 89 | H7: 96 | I7: 93 | J7: 91 | K7: 87 | L7: 552
A8: 2 | B8: 36B | C8: Buthion David | D8: Pont Eveque | E8: 1974 | F8: 85 | G8: 85 | H8: 87 | I8: 87 | J8: 83 | K8: 80 | L8: 507
A9: 3 | B9: 86T | C9: Tokarzewski Ludovic | D9: Montmelian | E9: 1977 | F9: 81 | G9: 83 | H9: 80 | I9: 91 | J9: 89 | K9: 81 | L9: 505
A10: 4 | B10: 75C | C10: Compain Stéphane | D10: Voreppe | E10: 1967 | F10: 83 | G10: 74 | H10: 85 | I10: 79 | J10: 87 | K10: 79 | L10: 487
A11: 5 | B11: 31K | C11: Kompaore Laurent | D11: Cran Gevrier | E11: 1971 | F11: 0 | G11: 91 | H11: 100 | I11: 100 | J11: 96 | K11: 91 | L11: 478
A12: 6 | B12: 86A | C12: Althuser Olivier | D12: Voreppe | E12: 1977 | F12: 75 | G12: 73 | H12: 81 | I12: 81 | J12: 79 | K12: 76 | L12: 465
A13: 7 | B13: 14R | C13: Rollet Nicolas | D13: Cran Gevrier | E13: 1977 | F13: 87 | G13: 79 | H13: 91 | I13: 89 | J13: 80 | K13: 3 | L13: 429
A14: 8 | B14: 11M | C14: Mejecaze Olivier | D14: Cran Gevrier | E14: 1970 | F14: 0 | G14: 71 | H14: 79 | I14: 80 | J14: 78 | K14: 75 | L14: 383
D15: Séniors Cruisers
A16: Rg | B16: N° Pl | C16: Nom/ Prénom | D16: Club | E16: Année | F16: Montmelian | G16: Pont Eveque | H16: Echichens | I16: Cran Gevrier | J16: Grenoble | K16: Genève | L16: Total
A17: 1 | B17: 98D | C17: Doremus Tim | D17: Cran Gevrier | E17: 1979 | F17: 96 | G17: 96 | H17: 100 | I17: 96 | J17: 100 | K17: 89 | L17: 577
A18: 2 | B18: 23 | C18: Rigo Marcelo | D18: Genève | E18: 1981 | F18: 93 | G18: 91 | H18: 93 | I18: 91 | J18: 96 | K18: 93 | L18: 557
A19: 3 | B19: 13 | C19: Santschy Joel | D19: Genève | E19: 1983 | F19: 83 | G19: 76 | H19: 87 | I19: 89 | J19: 87 | K19: 79 | L19: 501
A20: 4 | B20: 85M | C20: Morin Gael | D20: Pont Eveque | E20: 1979 | F20: 81 | G20: 79 | H20: 89 | I20: 81 | J20: 81 | K20: 81 | L20: 492
A21: 5 | B21: 43H | C21: Hilarion Mathieu | D21: Montmelian | E21: 1979 | F21: 80 | G21: 75 | H21: 85 | I21: 83 | J21: 85 | K21: 83 | L21: 491
A22: 6 | B22: 02C | C22: Coty Emmanuel | D22: Pont Eveque | E22: 1992 | F22: 91 | G22: 89 | H22: 91 | I22: 0 | J22: 91 | K22: 87 | L22: 449
A23: 7 | B23: 93S | C23: Soria Alice | D23: Pont Eveque | E23: 1985F | F23: 78 | G23: 74 | H23: 0 | I23: 79 | J23: 100 | K23: 77 | L23: 408
A24: 8 | B24: 57M | C24: Mogenot Nicolas | D24: Pont Eveque | E24: 1979 | F24: 100 | G24: 100 | H24: 0 | I24: 100 | J24: 0 | K24: 96 | L24: 396
D26: Piccolos
A27: Rg | B27: N° Pl | C27: Nom/ Prénom | D27: Club | E27: Année | F27: Montmelian | G27: Pont Eveque | H27: Echichens | I27: Cran Gevrier | J27: Grenoble | K27: Genève | L27: Total
A28: 1 | B28: 50M | C28: Melissano Alise | D28: Geneve | E28: 2010F | F28: 96 | G28: 96 | H28: 100 | I28: 100 | J28: 100 | K28: 100 | L28: 592
A29: 2 | B29: 58D | C29: Dubois Mathis | D29: Montmelian | E29: 2011 | F29: 93 | G29: 91 | H29: 96 | I29: 93 | J29: 96 | K29: 96 | L29: 565
A30: 3 | B30: 73F | C30: Fournier Valentin | D30: Montmelian | E30: 2012 | F30: 81 | G30: 81 | H30: 91 | I30: 91 | J30: 83 | K30: 78 | L30: 505
A31: 4 | B31: 45G | C31: Guerraz Alicia | D31: Cran Gevrier | E31: 2010F | F31: 79 | G31: 83 | H31: 81 | I31: 89 | J31: 87 | K31: 81 | L31: 500
A32: 5 | B32: 70C | C32: Charmet Timo | D32: Montmelian | E32: 2012 | F32: 80 | G32: 78 | H32: 80 | I32: 87 | J32: 72 | K32: 73 | L32: 470
A33: 6 | B33: 71D | C33: Duval Samuel | D33: Cran Gevrier | E33: 2011 | F33: 0 | G33: 85 | H33: 89 | I33: 83 | J33: 91 | K33: 89 | L33: 437
A34: 7 | B34: 49C | C34: Compain Ema | D34: Voreppe | E34: 2010F | F34: 75 | G34: 67 | H34: 75 | I34: 74 | J34: 71 | K34: 70 | L34: 432
A35: 8 | B35: 10 | C35: Rollet Eliot | D35: Geneve | E35: SUI2012 | F35: 76 | G35: 69 | H35: 77 | I35: 75 | J35: 68 | K35: 66 | L35: 431
D39: Poussins
A40: Rg | B40: N° Pl | C40: Nom/ Prénom | D40: Club | E40: Année | F40: Montmelian | G40: Pont Eveque | H40: Echichens | I40: Cran Gevrier | J40: Grenoble | K40: Genève | L40: Total
A41: 1 | B41: 40B | C41: Bolliet Selene | D41: Montmelian | E41: 2009F | F41: 96 | G41: 100 | H41: 96 | I41: 100 | J41: 89 | K41: 89 | L41: 570
A42: 2 | B42: 18 | C42: Guilhem Lucas | D42: Genève | E42: sui2010 | F42: 83 | G42: 93 | H42: 80 | I42: 93 | J42: 91 | K42: 87 | L42: 527
A43: 3 | B43: 46M | C43: Mejecaze Célie | D43: Cran Gevrier | E43: 2009F | F43: 89 | G43: 83 | H43: 87 | I43: 89 | J43: 87 | K43: 83 | L43: 518
A44: 4 | B44: 54T | C44: Teyssier Ilyan | D44: Voreppe | E44: 2010 | F44: 78 | G44: 91 | H44: 91 | I44: 87 | J44: 83 | K44: 79 | L44: 509
A45: 5 | B45: 94G | C45: Gillardo Gabriel | D45: Voreppe | E45: 2010 | F45: 91 | G45: 81 | H45: 79 | I45: 78 | J45: 79 | K45: 73 | L45: 481
A46: 6 | B46: 94F | C46: Fournier Antoine | D46: Montmelian | E46: 2010 | F46: 81 | G46: 80 | H46: 83 | I46: 80 | J46: 78 | K46: 78 | L46: 480
A47: 7 | B47: 24T | C47: Tournoud Hugo | D47: Montmelian | E47: 2010 | F47: 85 | G47: 78 | H47: 73 | I47: 85 | J47: 76 | K47: 65 | L47: 462
A48: 8 | B48: 71B | C48: Bonnevie Enzo | D48: Cran Gevrier | E48: 2010 | F48: 76 | G48: 87 | H48: 85 | I48: 77 | J48: 65 | K48: 71 | L48: 461
D50: Minis 1
A51: Rg | B51: N° Pl | C51: Nom/ Prénom | D51: Club | E51: Année | F51: Montmelian | G51: Pont Eveque | H51: Echichens | I51: Cran Gevrier | J51: Grenoble | K51: Genève | L51: Total
A52: 1 | B52: 74A | C52: Althuser Malo | D52: Voreppe | E52: 2009 | F52: 87 | G52: 83 | H52: 89 | I52: 89 | J52: 93 | K52: 81 | L52: 522
A53: 2 | B53: 044 | C53: Noeth Merel | D53: Volketswill | E53: 2008F | F53: 89 | G53: 85 | H53: 81 | I53: 87 | J53: 91 | K53: 87 | L53: 520
A54: 3 | B54: 87J | C54: Janes Martin | D54: Cran Gevrier | E54: 2009 | F54: 79 | G54: 79 | H54: 80 | I54: 91 | J54: 89 | K54: 78 | L54: 496
A55: 4 | B55: 34P | C55: Papin Jules | D55: Cran Gevrier | E55: 2009 | F55: 78 | G55: 87 | H55: 87 | I55: 81 | J55: 87 | K55: 72 | L55: 492
A56: 5 | B56: 62T | C56: Tournoud Theo | D56: Montmelian | E56: 2009 | F56: 85 | G56: 77 | H56: 85 | I56: 83 | J56: 85 | K56: 74 | L56: 489
A57: 6 | B57: 22b | C57: Bannay Lilian | D57: Pont Eveque | E57: 2009 | F57: 80 | G57: 80 | H57: 76 | I57: 79 | J57: 83 | K57: 77 | L57: 475
A58: 7 | B58: 64T | C58: Tournoud Dany | D58: Montmelian | E58: 2009 | F58: 96 | G58: 89 | H58: 0 | I58: 93 | J58: 96 | K58: 93 | L58: 467
A59: 8 | B59: 96B | C59: Bourbonnais Eliott | D59: Cran Gevrier | E59: 2009 | F59: 70 | G59: 74 | H59: 77 | I59: 76 | J59: 79 | K59: 69 | L59: 445
D61: Minis 2
A62: Rg | B62: N° Pl | C62: Nom/ Prénom | D62: Club | E62: Année | F62: Montmelian | G62: Pont Eveque | H62: Echichens | I62: Cran Gevrier | J62: Grenoble | K62: Genève | L62: Total
A63: 1 | B63: 77V | C63: Venturini Terry | D63: Montmelian | E63: 2008 | F63: 100 | G63: 100 | H63: 83 | I63: 100 | J63: 96 | K63: 100 | L63: 579
A64: 2 | B64: 1 | C64: Ferreira David | D64: Nord Vaudois | E64: SUI2008 | F64: 96 | G64: 93 | H64: 96 | I64: 96 | J64: 93 | K64: 91 | L64: 565
A65: 3 | B65: 66M | C65: Melissano Dario | D65: Genève | E65: 2008 | F65: 78 | G65: 85 | H65: 93 | I65: 83 | J65: 91 | K65: 83 | L65: 513
A66: 4 | B66: 50R | C66: Reynaud Mylan | D66: Mours | E66: 2008 | F66: 79 | G66: 89 | H66: 79 | I66: 77 | J66: 89 | K66: 85 | L66: 498
A67: 5 | B67: 13 | C67: Guilhem Gabriel | D67: Genève | E67: 2008 | F67: 85 | G67: 83 | H67: 85 | I67: 87 | J67: 79 | K67: 76 | L67: 495
A68: 6 | B68: 45J | C68: Jay Hugo | D68: Pont Eveque | E68: 2008 | F68: 73 | G68: 78 | H68: 74 | I68: 85 | J68: 83 | K68: 71 | L68: 464
A69: 7 | B69: 51M | C69: Melo Vieira Lucas | D69: Montmelian | E69: 2008 | F69: 83 | G69: 96 | H69: 81 | I69: 93 | J69: 81 | K69: 0 | L69: 434
A70: 8 | B70: 99B | C70: Bonhomme Tony | D70: Cran Gevrier | E70: 2008 | F70: 87 | G70: 87 | H70: 76 | I70: 89 | J70: 85 | K70: 0 | L70: 424
D71: Cadets 1
A72: Rg | B72: N° Pl | C72: Nom/ Prénom | D72: Club | E72: Année | F72: Montmelian | G72: Pont Eveque | H72: Echichens | I72: Cran Gevrier | J72: Grenoble | K72: Genève | L72: Total
A73: 1 | B73: 34R | C73: Rochet Malo | D73: Montmelian | E73: 2007 | F73: 100 | G73: 100 | H73: 91 | I73: 96 | J73: 85 | K73: 85 | L73: 557
A74: 2 | B74: 70B | C74: Barcelo Hugo | D74: Voreppe | E74: 2007 | F74: 96 | G74: 81 | H74: 83 | I74: 89 | J74: 96 | K74: 91 | L74: 536
A75: 3 | B75: 14 | C75: Santschy Kylian | D75: Genève | E75: SUI2007 | F75: 85 | G75: 96 | H75: 80 | I75: 79 | J75: 80 | K75: 87 | L75: 507
A76: 4 | B76: 38I | C76: Iseppi Julien | D76: Cran Gevrier | E76: 2007 | F76: 81 | G76: 91 | H76: 85 | I76: 78 | J76: 79 | K76: 80 | L76: 494
A77: 5 | B77: 03A | C77: Althuser Paul | D77: Voreppe | E77: 2007 | F77: 80 | G77: 93 | H77: 78 | I77: 81 | J77: 83 | K77: 77 | L77: 492
A78: 6 | B78: 11B | C78: Bolliet Charles | D78: Montmelian | E78: 2007 | F78: 79 | G78: 79 | H78: 79 | I78: 87 | J78: 87 | K78: 78 | L78: 489
A79: 7 | B79: 71M | C79: Mejecaze Gabriel | D79: Cran Gevrier | E79: 2007 | F79: 73 | G79: 77 | H79: 73 | I79: 80 | J79: 81 | K79: 76 | L79: 460
A80: 8 | B80: 17D | C80: Doremus Noe | D80: Montmelian | E80: 2007 | F80: 78 | G80: 73 | H80: 72 | I80: 77 | J80: 72 | K80: 71 | L80: 443
D83: Cadettes
A84: Rang | B84: No plaque | C84: Nom / Prénom | D84: Club | E84: Année | F84: Points qual | G84: Points class.
F85: Montmelian | G85: Pont Eveque | H85: Echichens | I85: Cran Gevrier | J85: Grenoble | K85: Genève | L85: Total
A86: 1 | B86: 94G | C86: Ghebrid Chahima | D86: Montmelian | E86: 2006F | F86: 100 | G86: 100 | H86: 100 | I86: 91 | J86: 100 | K86: 100 | L86: =SUM(F86:K86) -> 591
A87: 2 | B87: 93B | C87: Buthion Jade | D87: Pont Eveque | E87: 2006F | F87: 93 | G87: 93 | H87: 91 | I87: 76 | J87: 96 | K87: 91 | L87: =SUM(F87:K87) -> 540
A88: 3 | B88: 69F | C88: Feuvrier Zoé | D88: Cran Gevrier | E88: 2005F | F88: 91 | G88: 89 | H88: 89 | I88: 71 | J88: 93 | K88: 87 | L88: =SUM(F88:K88) -> 520
D90: Cadets 2
A91: Rg | B91: N° Pl | C91: Nom/ Prénom | D91: Club | E91: Année | F91: Montmelian | G91: Pont Eveque | H91: Echichens | I91: Cran Gevrier | J91: Grenoble | K91: Genève | L91: Total
A92: 1 | B92: 51F | C92: Falquet Mylann | D92: Montmelian | E92: 2006 | F92: 100 | G92: 93 | H92: 100 | I92: 100 | J92: 96 | K92: 96 | L92: 585
A93: 2 | B93: 91G | C93: Godard Noah | D93: Montmelian | E93: 2006 | F93: 96 | G93: 87 | H93: 85 | I93: 93 | J93: 100 | K93: 87 | L93: 548
A94: 3 | B94: 12S | C94: Serret Macéo | D94: Montmelian | E94: 2006 | F94: 93 | G94: 91 | H94: 91 | I94: 96 | J94: 83 | K94: 93 | L94: 547
A95: 4 | B95: 11 | C95: Travelletti Mathis | D95: Echichens | E95: SUI2006 | F95: 79 | G95: 85 | H95: 80 | I95: 78 | J95: 87 | K95: 79 | L95: 488
A96: 5 | B96: 33D | C96: Dubois Clément | D96: Montmelian | E96: 2006 | F96: 73 | G96: 83 | H96: 77 | I96: 76 | J96: 91 | K96: 80 | L96: 480
A97: 6 | B97: 17N | C97: Noble Mateo | D97: Montmelian | E97: 2006 | F97: 75 | G97: 77 | H97: 74 | I97: 73 | J97: 78 | K97: 76 | L97: 453
A98: 7 | B98: 43D | C98: Duvernay Noa | D98: Cran Gevrier | E98: 2006 | F98: 77 | G98: 75 | H98: 75 | I98: 77 | J98: 74 | K98: 75 | L98: 453
A99: 8 | B99: 33D | C99: Desilles Alix | D99: Montmelian | E99: 2007 | F99: 85 | G99: 89 | H99: 96 | I99: 87 | J99: 0 | K99: 89 | L99: 446
D100: Ecoliers
A101: Rg | B101: N° Pl | C101: Nom/ Prénom | D101: Club | E101: Année | F101: Montmelian | G101: Pont Eveque | H101: Echichens | I101: Cran Gevrier | J101: Grenoble | K101: Genève | L101: Total
A102: 1 | B102: 73W | C102: Won Fah Hin Tom | D102: Meyzieu | E102: 2004 | F102: 96 | G102: 96 | H102: 93 | I102: 83 | J102: 93 | K102: 96 | L102: 557
A103: 2 | B103: 039 | C103: Gusthiot Leo | D103: Genève | E103: SUI2004 | F103: 91 | G103: 93 | H103: 87 | I103: 91 | J103: 96 | K103: 91 | L103: 549
A104: 3 | B104: 84G | C104: Gros Deleglise Guerlain | D104: Montmelian | E104: 2004 | F104: 100 | G104: 81 | H104: 100 | I104: 81 | J104: 100 | K104: 83 | L104: 545
A105: 4 | B105: 76B | C105: Bertail Julien | D105: Montmelian | E105: 2004 | F105: 81 | G105: 78 | H105: 79 | I105: 89 | J105: 89 | K105: 72 | L105: 488
A106: 5 | B106: 94Z | C106: Zimmermann Terence | D106: Grenoble | E106: 2004 | F106: 75 | G106: 83 | H106: 77 | I106: 78 | J106: 78 | K106: 77 | L106: 468
A107: 6 | B107: 49G | C107: Gely Pierre | D107: Grenoble | E107: 2005 | F107: 65 | G107: 89 | H107: 70 | I107: 87 | J107: 83 | K107: 64 | L107: 458
A108: 7 | B108: 72J | C108: Jean-Bart Kellian | D108: Montmelian | E108: 2004 | F108: 71 | G108: 77 | H108: 66 | I108: 77 | J108: 81 | K108: 68 | L108: 440
A109: 8 | B109: 16G | C109: Ghebrid Samir | D109: Montmelian | E109: 2004 | F109: 72 | G109: 74 | H109: 69 | I109: 74 | J109: 85 | K109: 58 | L109: 432
D112: Juniors
A113: Rg | B113: N° Pl | C113: Nom/ Prénom | D113: Club | E113: Année | F113: Montmelian | G113: Pont Eveque | H113: Echichens | I113: Cran Gevrier | J113: Grenoble | K113: Genève | L113: Total
A114: 1 | B114: 52P | C114: Perenon Valentin | D114: Montmelian | E114: 2003 | F114: 87 | G114: 83 | H114: 91 | I114: 96 | J114: 100 | K114: 80 | L114: 537
A115: 2 | B115: 98R | C115: Regottaz Lucas | D115: Montmelian | E115: 2003 | F115: 85 | G115: 89 | H115: 89 | I115: 93 | J115: 96 | K115: 73 | L115: 525
A116: 3 | B116: 53 | C116: Lechaire Kevin | D116: Genève | E116: SUI2003 | F116: 77 | G116: 91 | H116: 80 | I116: 87 | J116: 89 | K116: 78 | L116: 502
A117: 4 | B117: 95T | C117: Thierry Max | D117: Montmelian | E117: 2003 | F117: 79 | G117: 79 | H117: 78 | I117: 73 | J117: 80 | K117: 72 | L117: 461
A118: 5 | B118: 65D | C118: Dupuy Quentin | D118: Pont Eveque | E118: 2003 | F118: 3 | G118: 96 | H118: 96 | I118: 89 | J118: 93 | K118: 79 | L118: 456
A119: 6 | B119: 86T | C119: Tokarzewski Ugo | D119: Montmelian | E119: 2002 | F119: 73 | G119: 66 | H119: 76 | I119: 91 | J119: 73 | K119: 70 | L119: 449
A120: 7 | B120: 82C | C120: Chabert Damien | D120: Voreppe | E120: 2003 | F120: 78 | G120: 75 | H120: 73 | I120: 72 | J120: 79 | K120: 62 | L120: 439
A121: 8 | B121: 63N | C121: Nemos Emerik | D121: Pont Eveque | E121: 2003 | F121: 69 | G121: 72 | H121: 74 | I121: 78 | J121: 71 | K121: 61 | L121: 425
D123: Juniors Elites Women
A124: Rg | B124: N° Pl | C124: Nom/ Prénom | D124: Club | E124: Année | F124: Montmelian | G124: Pont Eveque | H124: Echichens | I124: Cran Gevrier | J124: Grenoble | K124: Genève | L124: Total
A125: 1 | B125: 113 | C125: Marescutti Loredana | D125: Genève | E125: SUI1999F | F125: 89 | G125: 68 | H125: 93 | I125: 68 | J125: 70 | K125: 96 | L125: =SUM(F125:K125) -> 484
D129: Elites
A130: Rg | B130: N° Pl | C130: Nom/ Prénom | D130: Club | E130: Année | F130: Montmelian | G130: Pont Eveque | H130: Echichens | I130: Cran Gevrier | J130: Grenoble | K130: Genève | L130: Total
A131: 1 | B131: 07F/62 | C131: Ferrer Julien | D131: Pont Eveque | E131: 1999 | F131: 78 | G131: 89 | H131: 80 | I131: 96 | J131: 87 | K131: 81 | L131: 511
A132: 2 | B132: 45B | C132: Balaye Eliot | D132: Pont Eveque | E132: 2001 | F132: 79 | G132: 96 | H132: 69 | I132: 93 | J132: 81 | K132: 79 | L132: 497
A133: 3 | B133: 81M | C133: Morot Aurelien | D133: Cran Gevrier | E133: 1998 | F133: 77 | G133: 85 | H133: 71 | I133: 91 | J133: 80 | K133: 77 | L133: 481
A134: 4 | B134: 07 | C134: Schweizer Adrien | D134: Genève | E134: SUI2000 | F134: 87 | G134: 0 | H134: 78 | I134: 87 | J134: 91 | K134: 93 | L134: 436
A135: 5 | B135: 19G | C135: Greffet Eddy | D135: Cran Gevrier | E135: 1988 | F135: 76 | G135: 77 | H135: 67 | I135: 76 | J135: 74 | K135: 64 | L135: 434
A136: 6 | B136: 18S | C136: Servais Alexandre | D136: Meyzieu | E136: 1995 | F136: 69 | G136: 74 | H136: 66 | I136: 77 | J136: 71 | K136: 67 | L136: 424
A137: 7 | B137: 10M | C137: Maucors Matéo | D137: Pont Eveque | E137: 2001 | F137: 65 | G137: 67 | H137: 68 | I137: 80 | J137: 72 | K137: 71 | L137: 423
A138: 8 | B138: 34D | C138: Devun Thomas | D138: Meyzieu | E138: 1999 | F138: 63 | G138: 71 | H138: 65 | I138: 79 | J138: 77 | K138: 63 | L138: 418
